Cogmind - Beta 13 @@@ ROGUE MODE // 2024.08.03 @ 11:46:17 Player: btracker Result: Destroyed by G-47 Trooper with Particle Gun Performance ------------- Evolutions (2) 1000 Regions Visited (4) 800 Robots Destroyed (26) 130 Value Destroyed (563) 563 Prototype IDs (0) 0 Alien Tech Used (0) 0 Bonus (0) 0 TOTAL SCORE: 2493 Bonus ------- None Cogmind --------- Core Integrity 0/550 Matter 183/300 Energy 11/250 System Corruption 0% Temperature Danger (465) Movement Core (100) Ox1 Location -8/Materials Parts ------- > --- POWER (2) -------- Ion Engine > --- PROPULSION (3) --- (None) > --- UTILITY (2) ------ Transport Network Coupler Transmission Jammer > --- WEAPON (4) ------- (None) > --- INVENTORY (5) ---- (None) Peak State ------------ > --- POWER ------------ Improved Ion Engine Deuterium Engine > --- PROPULSION ------- Wheel Wheel Compact Wheel > --- UTILITY ---------- Large Matter Pod Terrain Scanner > --- WEAPON ----------- Ion Cannon Autogun Autogun Grenade Launcher > --- INVENTORY -------- Light Ion Engine Compact Wheel Particle Charger Transmission Jammer Transmission Jammer [Rating: 19] Favorites ----------- Power Ion Engine Engine Ion Engine Propulsion Wheel Leg Aluminum Leg Wheel Wheel Utility Large Matter Pod Device Terrain Scanner Storage Large Matter Pod Processor Transport Network Coupler Protection Core Shielding Weapon Light Assault Rifle Energy Gun EM Pulse Gun Energy Cannon Ion Cannon Ballistic Gun Light Assault Rifle Launcher Grenade Launcher Build | -11 -10 -10 -9 -8 ------- Run | Yrd Mat Min Mat Mat Slots Evolved 4 | . . . 2 2 Power 1 | . . . 1 . Propulsion 1 | . . . . 1 Utility . | . . . . . Weapon 2 | . . . 1 1 Parts Attached 29 | 5 9 . 6 9 Power 7 | 1 2 . 2 2 Engine 7 | 1 2 . 2 2 Core . | . . . . . Reactor . | . . . . . Propulsion 5 | 2 2 . . 1 Treads . | . . . . . Leg 2 | 2 . . . . Wheel 3 | . 2 . . 1 Hover . | . . . . . Flight . | . . . . . Utility 7 | . 3 . . 4 Device 4 | . 2 . . 2 Storage 1 | . 1 . . . Processor 1 | . . . . 1 Hackware . | . . . . . Protection 1 | . . . . 1 Artifact . | . . . . . Weapon 10 | 2 2 . 4 2 Energy Gun 1 | 1 . . . . Energy Cannon 1 | . . . . 1 Ballistic Gun 6 | 1 1 . 3 1 Ballistic Cannon . | . . . . . Launcher 2 | . 1 . 1 . Special Weapon . | . . . . . Impact Weapon . | . . . . . Slashing Weapon . | . . . . . Piercing Weapon . | . . . . . Special Melee Weapon . | . . . . . Unidentified Prototypes . | . . . . . Parts Lost 19 | . 5 . . 14 Power 3 | . 1 . . 2 Propulsion 5 | . 2 . . 3 Utility 5 | . 1 . . 4 Weapon 6 | . 1 . . 5 Highest Loss Streak 14 | . 5 . . 14 To Critical Strikes . | . . . . . Average Slot Usage (%) 91 | . 86 100 98 88 Engine 15 | . 13 14 22 16 Leg 5 | . 11 . . . Wheel 19 | . 12 28 22 24 Device 9 | . 8 14 11 7 Storage 11 | . 12 14 11 8 Energy Gun 2 | . 4 . . . Energy Cannon 1 | . . . . 6 Ballistic Gun 16 | . 14 14 21 17 Launcher 8 | . 7 14 10 7 Naked Turns 2 | . . . . 2 Heaviest Build 35 | 8 13 13 23 35 Greatest Support 36 | 20 26 26 26 36 Greatest Overweight (x) 3 | . 3 . . 1 Average Overweight (x) . | . . . . . Largest Inventory Capacity 5 | 5 5 5 5 5 Average Capacity 5 | 5 5 5 5 5 Most Carried 5 | 5 5 5 5 5 Average Carried 4 | 2 3 4 4 4 Final Capacity 5 | 5 5 5 5 5 Final Carried 5 | 5 4 5 5 . Class Distribution -------------------- 61% | Mutant 36% | Skirmisher Dominant Class ---------------- Mutant | -10/Materials Mutant | -10/Mines Skirmisher | -9/Materials Skirmisher | -8/Materials Resources | -11 -10 -10 -9 -8 ----------- Run | Yrd Mat Min Mat Mat Matter Collected 711 | 232 154 66 123 136 Remotely . | . . . . . Salvage Created 705 | . 177 25 189 314 Parts 47 | . 14 6 7 20 Haulers Intercepted 2 | . . . . 2 Recyclers Shooed 2 | . 2 . . . Parts Field Recycled . | . . . . . Retrieved Matter . | . . . . . Parts Self-Destructed . | . . . . . Prevented . | . . . . . Kills | -11 -10 -10 -9 -8 ------- Run | Yrd Mat Min Mat Mat Combat Hostiles Destroyed 19 | . 6 3 5 5 Guns 4 | . 1 1 1 1 AOE 15 | . 5 2 4 4 Classes Destroyed 8 | . 4 . 1 3 Builder 1 | . 1 . . . Hauler 2 | . . . . 2 Recycler 2 | . 1 . . 1 Operator 1 | . . . . 1 Watcher 1 | . . . . 1 Swarmer 9 | . 3 3 . 3 Grunt 8 | . 3 . 3 2 Sentry 2 | . . . 2 . Best Kill Streak 6 | . 4 3 4 6 Combat Bots Only 4 | . 4 3 4 3 Max Kills in Single Turn 4 | . 3 2 2 4 Gunslinging . | . . . . . Exploded 2 | . 2 2 2 2 Melee . | . . . . . Uniques/NPCs Destroyed . | . . . . . Combat | -11 -10 -10 -9 -8 -------- Run | Yrd Mat Min Mat Mat Hostile Shots Fired 189 | . 86 2 14 87 Missed 43 | . 20 2 6 15 Damage Taken 2068 | . 614 18 111 1325 Core 772 | . 204 6 12 550 Absorbed by Shields . | . . . . . Redirected to Shielding 35 | . . . . 35 Core Remaining (%) 71 | 100 . 16 97 . Volleys Fired 47 | . 12 3 9 23 Largest 4 | . 2 2 3 4 Hottest 136 | . 60 50 73 136 Shots Fired 117 | . 20 4 25 68 Gun 80 | . 14 3 20 43 Cannon 20 | . . . . 20 Launcher 17 | . 6 1 5 5 Special . | . . . . . Kinetic 78 | . 12 3 20 43 Thermal 20 | . . . . 20 Explosive 17 | . 6 1 5 5 Electromagnetic 2 | . 2 . . . Robot Hit Streak 11 | . 4 2 10 11 Robot Miss Streak 6 | . 3 . 4 6 Penetration Max . | . . . . . Secondary Targets . | . . . . . Shots Hit Robots 53 | . 9 1 19 24 Core Hits 46 | . 12 3 10 21 Critical Kills . | . . . . . Critical Parts Destroyed . | . . . . . Critical Strikes . | . . . . . Melee Attacks . | . . . . . Impact . | . . . . . Slashing . | . . . . . Piercing . | . . . . . Sneak Attacks . | . . . . . Combat Hostiles . | . . . . . Follow-up Attacks . | . . . . . Damage Inflicted 1684 | . 435 156 340 753 Guns 475 | . 51 16 193 215 Cannons 162 | . . . . 162 Explosions 1026 | . 363 140 147 376 Melee . | . . . . . Ramming 21 | . 21 . . . Kinetic 463 | . 39 16 193 215 Thermal 162 | . . . . 162 Explosive 1026 | . 363 140 147 376 Electromagnetic 12 | . 12 . . . Impact . | . . . . . Slashing . | . . . . . Piercing . | . . . . . Highest Corruption 1 | . . . 1 . Average Corruption 1 | . . . 1 . Corruption Purged . | . . . . . Corruption Blocked . | . . . . . Effects 1 | . . . 1 . Data Loss (minor) 1 | . . . 1 . Overload Shots . | . . . . . Overflow Damage 21 | . 17 2 . 2 Projectiles 2 | . . . . 2 Explosions 19 | . 17 2 . . Melee . | . . . . . Knockbacks . | . . . . . Impact . | . . . . . Kinetic . | . . . . . Secondary . | . . . . . Self-Inflicted Damage 80 | . 31 18 . 31 Shots 3 | . 1 1 . 1 Rammed 1 | . 1 . . . Targets Rammed 11 | . 11 . . . Kicked 10 | . 10 . . . Crushed . | . . . . . Highest Temperature 681 | . 32 10 72 681 Average Temperature 187 | . 12 7 28 259 Received Heat Transfer 828 | . 108 . 36 684 Effects 18 | . . . . 18 Shutdowns 1 | . . . . 1 Energy Bleed 1 | . . . . 1 Interference 3 | . . . . 3 Matter Decay 3 | . . . . 3 Damage (major) 8 | . . . . 8 Damage (core) 2 | . . . . 2 Siege Activations . | . . . . . Robots Corrupted . | . . . . . Combat Hostiles . | . . . . . Parts Fried . | . . . . . Impact Corruptions . | . . . . . Robots Melted . | . . . . . Combat Hostiles . | . . . . . Parts Melted . | . . . . . Heat Transferred 259 | . . . . 259 Parts Sabotaged . | . . . . . Parts Stolen . | . . . . . Parts Stripped . | . . . . . Power Chain Reactions . | . . . . . Alert | -11 -10 -10 -9 -8 ------- Run | Yrd Mat Min Mat Mat Peak Influence 326 | . 236 106 233 326 Initial 98 | . . 13 40 98 Average 119 | . 84 105 145 203 Maximum Alert Level 1 | . 1 . 1 1 Low Security (%) 66 | 100 71 100 63 33 Level 1 33 | . 28 . 36 66 Level 2 . | . . . . . Level 3 . | . . . . . Level 4 . | . . . . . Level 5 . | . . . . . High Security . | . . . . . Max Security . | . . . . . Squads Dispatched 5 | . 1 . 2 2 Investigation 4 | . 1 . 1 2 Extermination . | . . . . . Reinforcement 1 | . . . 1 . Assault . | . . . . . Garrison . | . . . . . Intercept . | . . . . . Searches Triggered . | . . . . . Construction Impeded . | . . . . . Haulers Reinforced . | . . . . . Active Scanning Responses . | . . . . . Cargo Convoy Interrupts . | . . . . . Stealth | -11 -10 -10 -9 -8 --------- Run | Yrd Mat Min Mat Mat Distress Signals . | . . . . . Communications Jammed . | . . . . . Distress Signals . | . . . . . Times Spotted 28 | . 8 1 6 13 Peak Tracking Total 6 | . 6 1 4 5 Tactical Retreats 4 | . 2 . . 2 Traps | -11 -10 -10 -9 -8 ------- Run | Yrd Mat Min Mat Mat Traps Triggered 2 | . . . 1 1 Indirectly . | . . . . . Trap Hack Attempts . | . . . . . Triggered . | . . . . . Disarmed . | . . . . . Reprogrammed . | . . . . . Reused . | . . . . . Traps Extracted . | . . . . . Installed . | . . . . . Triggered . | . . . . . Machines | -11 -10 -10 -9 -8 ---------- Run | Yrd Mat Min Mat Mat Machines Disabled 1 | . 1 . . . Max in Single Turn 1 | . 1 . . . Machines Repaired . | . . . . . Machines Dismantled . | . . . . . Machines Sabotaged . | . . . . . Overloaded Fab Kills . | . . . . . Hacking | -11 -10 -10 -9 -8 --------- Run | Yrd Mat Min Mat Mat Machines Accessed 7 | . 3 . 3 1 Terminals 4 | . 2 . 2 . Fabricators . | . . . . . Repair Stations . | . . . . . Recycling Units 3 | . 1 . 1 1 Scanalyzers . | . . . . . Garrison Access . | . . . . . Total Hacks 26 | . 11 . 7 8 Successful 15 | . 5 . 4 6 Failed 11 | . 6 . 3 2 Catastrophic . | . . . . . Database Lockouts . | . . . . . Manual . | . . . . . Terminals 9 | . 5 . 4 . Fabricators . | . . . . . Repair Stations . | . . . . . Recycling Units 17 | . 6 . 3 8 Scanalyzers . | . . . . . Garrison Access . | . . . . . Terminal Hacks 3 | . 1 . 2 . Dispatch Records 1 | . . . 1 . Transport Status 1 | . 1 . . . Investigation Status 1 | . . . 1 . Fabricator Hacks . | . . . . . Repair Station Hacks . | . . . . . Recycling Unit Hacks 12 | . 4 . 2 6 Recycle Component 4 | . 1 . . 3 Process 3 | . 1 . . 2 Report Inventory 3 | . 1 . 1 1 Retrieve Components 2 | . 1 . 1 . Scanalyzer . | . . . . . Garrison Access Hacks . | . . . . . Unauthorized Hacks . | . . . . . Terminals . | . . . . . Fabricators . | . . . . . Repair Stations . | . . . . . Recycling Units . | . . . . . Scanalyzers . | . . . . . Garrison Access . | . . . . . Data Cores Recovered 1 | . . . . 1 Used . | . . . . . Hacking Detections 5 | . 2 . 2 1 Full Trace Events 3 | . 1 . 1 1 Feedback Events . | . . . . . Feedback Blocked . | . . . . . Robot Schematics Acquired . | . . . . . Robots Built . | . . . . . Authchips . | . . . . . Time . | . . . . . Total Robot Build Rating . | . . . . . Part Schematics Acquired . | . . . . . Parts Built . | . . . . . Authchips . | . . . . . Time . | . . . . . Total Part Build Rating . | . . . . . Parts Repaired . | . . . . . Time . | . . . . . Parts Recycled 4 | . 1 . . 3 Recycled Matter 10 | . . . . 10 Retrieved Matter . | . . . . . Retrieved Components 10 | . 3 . 7 . Parts Scanalyzed . | . . . . . Part Schematics Acquired . | . . . . . Parts Damaged . | . . . . . Bothacking | -11 -10 -10 -9 -8 ------------ Run | Yrd Mat Min Mat Mat Used RIF Installer . | . . . . . Robots Hacked . | . . . . . Non-combat . | . . . . . Combat . | . . . . . Robot Hacks Applied . | . . . . . Relay Couplers Released . | . . . . . Fabnet Peak Effective % . | . . . . . Robots Rewired . | . . . . . Allies Hacked . | . . . . . Hacks Repelled . | . . . . . Allies | -11 -10 -10 -9 -8 -------- Run | Yrd Mat Min Mat Mat Total Allies . | . . . . . Largest Group . | . . . . . Highest-Rated Group . | . . . . . Highest-Rated Ally . | . . . . . Total Orders . | . . . . . Ally Attacks . | . . . . . Total Damage . | . . . . . Kills . | . . . . . Allies Corrupted . | . . . . . Allies Melted . | . . . . . Intel | -11 -10 -10 -9 -8 ------- Run | Yrd Mat Min Mat Mat Robot Analysis Total . | . . . . . Derelict Logs Recovered 1 | . . 1 . . Drone Launches . | . . . . . Drone Recoveries . | . . . . . Exploration | -11 -10 -10 -9 -8 ------------- Run | Yrd Mat Min Mat Mat Turns Passed 1179 | 73 497 138 206 265 Spaces Moved 987 | 52 406 146 180 203 Core 31 | 5 18 . . 8 Treads . | . . . . . Legs 202 | 47 155 . . . Wheels 754 | . 233 146 180 195 Hover . | . . . . . Flight . | . . . . . Fastest Speed 50 | 50 90 90 90 50 Average Speed 96 | 113 104 90 90 85 Slowest Speed 200 | 120 200 90 90 105 Overloaded Moves . | . . . . . Propulsion Burnouts . | . . . . . Robots Hopped . | . . . . . Cave-ins Triggered . | . . . . . Exploration Rate (%) 22 | 3 29 42 22 17 Regions Visited 4 Branch Regions 1 Pre-discovered Areas 1 | . . 1 . . Known Exits Taken . | . . . . . Unknown Exits Taken 4 | 1 1 1 1 . Scrap Searched 2 | . . 2 . . Spaces Dug 18 | . 10 8 . . Terrain Destroyed 115 | . 46 8 29 32 Melee . | . . . . . Projectile 4 | . . . . 4 AOE 111 | . 46 8 29 28 Terrain Rammed . | . . . . . Walls Destroyed . | . . . . . Machines Disabled . | . . . . . Actions | -11 -10 -10 -9 -8 --------- Run | Yrd Mat Min Mat Mat Total 1133 | 66 457 149 208 253 Wait 12 | . 6 . 4 2 Move 983 | 51 405 145 179 203 Hop . | . . . . . Pick Up 38 | 10 10 1 6 11 Fast Attach 1 | . 1 . . . Attach 21 | 5 6 . 2 8 Detach . | . . . . . Swap 7 | . 2 . 4 1 Drop 13 | . 4 . 4 5 Fire 47 | . 12 3 9 23 Melee . | . . . . . Ram 1 | . 1 . . . Kick 10 | . 10 . . . Crush . | . . . . . Escape Stasis . | . . . . . Rewire . | . . . . . Trap . | . . . . . Miscellaneous . | . . . . . Route ------- -11/Scrapyard -10/Materials -10/Mines -9/Materials -8/Materials History --------- Turn | Location | Event 2 | -11/Scrapyard | Met Revision 17 2 | -11/Scrapyard | Discovered new exit (range 16) 74 | -11/Scrapyard | Entered Materials 271 | -10/Materials | Core integrity fell below 50% 320 | -10/Materials | Build established: Mutant 331 | -10/Materials | Lost 5 parts (1p2n1u1w) 337 | -10/Materials | Core integrity fell below 20% 500 | -10/Materials | Discovered new exit (range 6) 571 | -10/Materials | Entered Mines 681 | -10/Mines | Learned location of Storage (-9) 699 | -10/Mines | Discovered new exit (range 13) 709 | -10/Mines | Entered Materials 709 | -9/Materials | Evolved 2 slots: Power x1, Weapon x1 904 | -9/Materials | Discovered new exit (range 12) 915 | -9/Materials | Entered another Materials area 915 | -8/Materials | Evolved 2 slots: Propulsion x1, Weapon x1 1000 | -8/Materials | Build established: Skirmisher 1161 | -8/Materials | Core integrity fell below 50% 1171 | -8/Materials | Core integrity fell below 20% 1180 | -8/Materials | Destroyed by G-47 Trooper with Particle Gun Last Messages --------------- Ion Cannon destroyed. U-05 Engineer lays Concrete. Lgt. Assault Rifle destroyed. G-47 Trooper overheating. U-05 Engineer lays Concrete. Overheating: Energy bleed (-11). U-05 Engineer lays Concrete. R-06 Scavenger collects Terrain Scan Processor. U-05 Engineer lays Concrete. Lrg. Matter Pod destroyed. U-05 Engineer lays Concrete. Overheating: Matter decay (-35). U-05 Engineer lays Concrete. Power failure, Ion Engine shutdown. Overheating: System interference. Particle Charger temporarily disabled. U-05 Engineer builds a Wall. Particle Charger destroyed. Overheating: Matter decay (-22). U-05 Engineer builds a Wall. Map ----- +----------------------------------------------------+ | ?????# #???????????????????????????????? | | ?#???# !!! #???????????????????????????????? | | ?????# !!! #???#???????????????????????????? | | ?????# !!! #??#????????????????????????????? | | ?????# #?????????????? ????????????????? | | ?????? #???????????????????????????????? | | ???????? ???????#######???????????????????? | | ????#?####+########## #???????????????????? | | ??????# #???????????????????? | | ??????# #???????????????????? | | ??????# #???????????????????? | | ??????####+######+### #???????????????????? | | ???????? # ## ##???????????????????? | | ??????" """ # """ ## #????????????????????? | | ????""" """ #! R" ##m #????????????????????? | | ??? """ """ # """ ## #???######???????????? | | ??? # ## #??? +???????????? | | ??? # ! ## #?? #???????????? | | ???################### #? a #???????????? | | ???????????????? ????# #? #????a??????? | | ????????????? ???????# # #???????????? | | ????????????????? ???# # #???????????? | | ?????????????????????+ + ! #???????????? | | ???????????????"?????# # *[#???????????? | | ?????????????????????# #?? / ????????? | | ?????????????????????#@ #############+???????? | | ???????????????#?????# # ]]!##????????????? | | ?????????????????????# # ]]!##????????????? | | ?????????????????##### # ]!#?????????????? | | ???????????#??#### ## + #?????????????? | | ???????" ##### k # #?????? ??????? | | ???????" + # #????????? ???? | | ??????????# % #####+##??????? ?????? | | ??????????# """ t#??## #??????????????? | | ??????????# """ =% g ##??# #???? ?????????? | | ??????????? """ ## ##### #?????#????????? | | ??????????? ?##g g# " ############???? | | ??????????# ?# u ?? | | ??????????# ?# ?? | | ????????? "T" ??## ?? | | ??????? """ ??## #+############# #??? | | ????????############## # #??????? | | ?????????????## ] ! # # #?#????? | | ??????????????# + %# """ """ """ #??????? | | ???#????????? # """" # # """ """ """????????? | | ??????????????# """" # # """ """ ""?????????? | | ???????? ?????# """" # # ? ???????? | | ??????????????# # ###########??????????? | | ??#????? ?????##+##### # #??????????????? | | ?????????#????## #???# # #??#???????????? | +----------------------------------------------------+ Best States ------------- Heat Dissipation 31 Energy Generation 21 Energy Capacity 440 Matter Stores 394 Matter Capacity 450 Sight Range 16 Terrain Scan Range 14 Terrain Scan Density 10 ECM Strength 1 Jamming Range 12 Core Shielding 20 Evasion (%) 55 Item Schematics ----------------- None Robot Schematics ------------------ None Fabricated ------------ Nothing Alien Tech Used ----------------- None Achievements -------------- None Challenges ------------ None Game ------ Seed SiegePowerCoupler Manual? 0 Play Time 00:20:28 Cumulative 2.0 hours Start 2024.08.03 @ 11:26:10 End 2024.08.03 @ 11:46:17 Sessions 1 Manual Loads 0 Difficulty Rogue Special Mode None Game No. 5 Rogue 5 Adventurer 0 Explorer 0 Win Type - Total 0 Types 0/0/0/0/0/0/0/0/0 Lore% 6 Gallery% 5 Achievement% 7 Wizard Run 0 Options --------- Layout 1 ASCII 0 Keyboard 0 Movement Mouse Keybinds 0 Fullscreen 1 Font 24/Smallcaps Map View 50x35 Zoom Use 0% Tactical HUD 0 Map Filters NONE Filters NONE Steam 1 RUN: 0e64f8fd-eff9-4a18-b0ce-7399e1be1eb2